bitfinex/quotes_ETHUSD_20230404
["timestamp","ask_amount","ask_price","bid_price","bid_amount"]
[1680610064254,4.97226218,1867.9,1867.3,0.2222]
[1680610064430,4.97226218,1867.9,1867.3,0.2142]
[1680610064799,4.98026218,1867.9,1867.3,0.2142]
[1680610064978,4.98026218,1867.9,1867.2,15.78518263]
[1680610065140,4.98026218,1867.9,1867.2,17.53382243]
[1680610065349,4.98026218,1867.9,1867.4,0.55513263]
[1680610065733,4.98026218,1867.9,1867.3,1.60561804]
[1680610065952,4.98026218,1867.9,1867.3,0.55513263]
[1680610065953,5.10874218,1867.9,1867.3,0.55513263]
[1680610066152,5.142,1867.8,1867.3,0.55513263]
[1680610066355,2.83027218,1867.7,1867.3,0.55513263]
[1680610066681,2.95877218,1867.7,1867.2,0.55513263]
[1680610066854,2.83027218,1867.7,1867.2,0.55513263]
[1680610067048,2.83027218,1867.7,1867.4,0.26439614]
[1680610067773,2.77402218,1867.7,1867.4,0.26439614]
[1680610067974,2.83827218,1867.7,1867.4,0.26439614]
[1680610068193,2.77402218,1867.7,1867.4,0.26439614]
[1680610068476,2.76602218,1867.7,1867.4,0.26439614]
[1680610068642,2.77402218,1867.7,1867.4,0.26439614]
[1680610070755,3.31175778,1867.7,1867.4,0.26439614]
[1680610071441,3.30375778,1867.7,1867.4,0.26173345]
[1680610071986,3.36800778,1867.7,1867.2,0.76934263]
[1680610072336,3.0,1867.6,1867.2,0.76934263]
[1680610072943,3.0,1867.6,1867.3,0.24625083]
[1680610074196,2.76602218,1867.5,1867.3,0.24625083]
[1680610075510,1.994,1867.4,1867.3,0.24625083]
[1680610075647,15.97780218,1867.4,1867.3,0.24625083]
[1680610075850,12.98080218,1867.4,1867.3,0.24625083]
[1680610076062,15.98080218,1867.4,1866.8,0.55513263]
[1680610076300,1.999,1867.2,1866.8,0.55513263]
[1680610076593,2.99602218,1867.1,1866.8,0.55513263]
[1680610076792,3.06029218,1867.1,1866.8,0.55513263]
[1680610076994,3.06029218,1867.1,1866.9,0.24814942]
[1680610077577,2.89784918,1867.1,1866.9,0.24814942]
[1680610077783,2.89484918,1867.1,1866.9,0.24814942]
[1680610077949,2.95911918,1867.1,1866.9,0.24814942]
[1680610078602,5.10111918,1867.1,1866.9,0.24814942]
[1680610078900,2.142,1867.0,1866.9,0.24814942]
[1680610079101,5.20229218,1867.0,1866.9,0.24814942]
[1680610079392,5.20529218,1867.0,1866.9,0.24814942]
[1680610079594,2.99902218,1867.0,1866.9,0.24814942]
[1680610079933,2.99602218,1867.0,1866.9,0.24814942]
[1680610081477,3.06029218,1867.0,1866.9,0.24814942]
[1680610081683,2.99602218,1867.0,1866.9,0.24814942]
[1680610081976,5.20229218,1867.0,1866.9,0.24814942]
[1680610082293,5.14102218,1867.0,1866.9,0.24814942]
[1680610082790,5.20529218,1867.0,1866.9,0.24814942]
[1680610082999,0.003,1867.0,1866.9,0.24814942]
[1680610083190,2.67747864,1867.1,1866.9,0.24814942]
[1680610083753,2.74174864,1867.1,1866.9,0.24814942]
[1680610084097,2.74174864,1867.1,1866.6,0.79138269]
[1680610084310,4.90802218,1867.0,1866.6,0.55513263]
[1680610084444,4.97229218,1867.0,1866.6,0.55513263]
[1680610084645,5.10083218,1867.0,1866.5,0.56113263]
[1680610084949,0.06428,1866.8,1866.7,0.28359455]
[1680610085151,2.142,1866.8,1866.7,0.28359455]
[1680610085396,2.20628,1866.8,1866.7,0.28359455]
[1680610085769,5.10086218,1866.8,1866.7,0.28359455]
[1680610085972,8.10386218,1866.8,1866.4,0.006]
[1680610086208,5.76602218,1866.7,1866.3,0.56113263]
[1680610086503,5.83330218,1866.7,1866.2,1.39741804]
[1680610086709,7.94886218,1866.7,1866.2,1.39741804]
[1680610088991,2.83031218,1866.4,1866.1,0.05]
[1680610089197,4.97231218,1866.4,1866.1,0.05]
[1680610089498,0.23,1866.3,1866.1,0.05]
[1680610089683,2.76602218,1866.2,1866.1,0.05]
[1680610090952,2.99602218,1866.2,1866.1,0.05]
[1680610092294,3.003,1866.3,1866.1,0.05]
[1680610092606,5.76602218,1866.3,1866.1,0.05]
[1680610092805,5.76902218,1866.3,1866.1,0.05]
[1680610093102,2.76602218,1866.2,1866.1,0.05]
[1680610093304,2.99602218,1866.2,1866.1,0.05]
[1680610095777,3.003,1866.3,1866.1,0.05]
[1680610096051,0.54219284,1866.4,1866.1,0.69305]
[1680610096247,3.30521502,1866.4,1866.1,0.772355]
[1680610096977,3.30521502,1866.4,1866.2,0.26894109]
[1680610097176,3.30521502,1866.4,1866.2,0.48327109]
[1680610098065,3.30521502,1866.4,1866.2,0.21433]
[1680610098277,0.53919284,1866.4,1866.2,0.21433]
[1680610098483,2.76602218,1866.3,1866.2,0.21433]
[1680610098679,2.76602218,1866.3,1866.1,0.27034]
[1680610098881,2.76602218,1866.3,1866.1,0.056]
[1680610099198,2.76602218,1866.3,1866.1,0.05]
[1680610100861,2.76337031,1866.3,1866.1,0.05]
[1680610110120,0.13846894,1866.4,1866.1,0.69305]
[1680610110293,0.13546894,1866.4,1866.3,0.21432]
[1680610111528,0.13546894,1866.4,1866.2,0.64298]
[1680610112141,0.13546894,1866.4,1866.3,0.25975192]
[1680610112996,0.13546894,1866.4,1866.3,0.47407192]
[1680610114500,0.13546894,1866.4,1866.3,0.25975192]
[1680610115991,2.90149112,1866.4,1866.3,0.25975192]
[1680610117684,5.90149112,1866.4,1866.3,0.25975192]
[1680610117802,5.90449112,1866.4,1866.3,0.25975192]
[1680610119533,5.90101214,1866.4,1866.3,0.25975192]
[1680610121012,6.44748719,1866.4,1866.3,0.25975192]
[1680610121835,6.67748719,1866.4,1866.3,0.25975192]
[1680610124460,12.33048719,1866.4,1866.3,0.25975192]
[1680610124694,5.653,1866.2,1865.7,0.1]
[1680610124823,5.653,1866.2,1865.6,0.71849721]
[1680610124824,1.149,1865.8,1865.6,0.71849721]
[1680610125133,0.005,1865.8,1865.7,0.07184972]
[1680610125319,0.12114765,1866.1,1865.7,0.28623972]
[1680610125664,0.11314765,1865.9,1865.5,3.19080835]
[1680610125821,0.11314765,1865.9,1865.5,1.36341]
[1680610126016,0.11314765,1865.9,1865.8,0.22299287]
[1680610126627,2.87916983,1865.9,1865.8,0.22299287]
[1680610127517,3.17347983,1865.9,1865.8,0.22299287]
[1680610127720,8.31747983,1865.9,1865.8,0.22299287]
[1680610127930,8.45409983,1865.9,1865.8,0.22299287]
[1680610128152,8.45709983,1865.9,1865.8,0.22299287]
[1680610128545,15.25209983,1865.9,1865.8,0.22299287]
[1680610128963,13.52567937,1865.9,1865.2,4.9773]
[1680610129152,3.42089702,1865.9,1865.6,0.21439]
[1680610129466,0.11314765,1865.8,1865.5,0.23638298]
[1680610129919,0.11314765,1865.8,1865.7,0.22341311]
[1680610130269,2.76602218,1865.8,1865.7,0.22341311]
[1680610130564,2.99602218,1865.8,1865.7,0.22341311]
[1680610130924,8.64902218,1865.8,1865.7,0.22341311]
[1680610131130,8.65202218,1865.8,1865.7,0.22341311]
[1680610131555,8.76516983,1865.8,1865.7,0.22341311]
[1680610131968,8.76516983,1865.8,1865.4,0.21442]
[1680610132269,5.653,1865.6,1865.4,0.21442]
[1680610132577,0.003,1865.6,1865.4,0.21442]
[1680610132785,0.11314765,1865.8,1865.4,0.21442]
[1680610132985,2.76602218,1865.6,1865.5,0.22425372]
[1680610133171,2.99602218,1865.6,1865.5,0.22425372]
[1680610133846,8.64902218,1865.6,1865.5,0.22425372]
[1680610134047,2.99902218,1865.6,1865.5,0.22425372]
[1680610134244,2.99602218,1865.6,1865.5,0.43866372]
[1680610134483,2.99602218,1865.6,1865.5,0.22425372]
[1680610134983,2.76602218,1865.6,1865.5,0.22425372]
[1680610135663,2.99602218,1865.6,1865.5,0.22425372]
[1680610135989,0.11614765,1865.8,1865.5,0.22425372]
[1680610136184,2.76602218,1865.7,1865.5,0.22425372]
[1680610136955,0.23,1865.6,1865.5,0.22425372]
[1680610137152,2.99602218,1865.6,1865.5,0.22425372]
[1680610137696,17.33548983,1865.6,1865.5,0.22425372]
[1680610137909,19.48248983,1865.6,1865.5,0.22425372]
[1680610138518,16.26748983,1865.6,1865.5,0.22425372]
[1680610138882,16.15434218,1865.6,1865.2,0.1]
[1680610139095,0.11314765,1865.3,1865.2,0.1]
[1680610139300,2.87916983,1865.3,1865.2,0.1]
[1680610139868,2.87916983,1865.3,1865.2,0.32551497]
[1680610140304,3.10916983,1865.3,1865.2,0.1]
[1680610140509,0.003,1865.4,1865.2,0.31445]
[1680610140679,0.11314765,1865.7,1865.2,1.60116]
[1680610140884,2.87916983,1865.7,1865.3,0.160116]
[1680610141189,2.87916983,1865.7,1865.4,0.21442]
[1680610141589,2.76602218,1865.6,1865.2,0.55087652]
[1680610141879,0.23,1865.5,1865.3,0.21444]
[1680610142080,2.99602218,1865.5,1865.3,0.21444]
[1680610142281,2.76602218,1865.4,1865.2,0.12797652]
[1680610142487,2.76602218,1865.4,1865.3,0.64331]
[1680610142680,2.99602218,1865.4,1865.3,0.64331]
[1680610143425,2.76602218,1865.4,1865.3,0.21443]
[1680610145115,2.76602218,1865.4,1865.2,0.31444]
[1680610145905,2.76602218,1865.4,1865.2,0.1]
[1680610146113,0.11314765,1865.3,1865.2,0.1]
[1680610146310,2.87916983,1865.3,1865.2,0.1]
[1680610146507,3.10916983,1865.3,1865.2,0.1]
[1680610150223,3.63885961,1865.3,1865.2,0.1]
[1680610152145,3.63885961,1865.3,1865.2,0.3398191]
[1680610152323,3.40885961,1865.3,1865.2,0.3398191]
[1680610153037,3.40885961,1865.3,1865.2,0.1]
[1680610154010,3.40885961,1865.3,1865.2,0.3398191]
[1680610157039,3.63885961,1865.3,1865.2,0.3398191]
[1680610157214,12.29185961,1865.3,1865.2,0.3398191]
[1680610157408,12.29485961,1865.3,1865.2,0.3398191]
[1680610157930,12.29485961,1865.3,1865.2,0.1]
[1680610158326,6.64185961,1865.3,1865.2,0.1]
[1680610159068,6.64185961,1865.3,1865.2,0.32067693]
[1680610159758,12.29485961,1865.3,1865.2,0.32067693]
[1680610160344,6.64185961,1865.3,1865.2,0.32067693]
[1680610161856,0.003,1865.3,1865.2,0.32067693]
[1680610162071,0.11314765,1865.5,1865.2,0.96402693]
[1680610163364,0.11314765,1865.5,1865.2,0.53512693]
[1680610163783,0.11314765,1865.5,1865.2,0.32067693]
[1680610163979,0.11036479,1865.5,1865.2,0.32067693]
[1680610165176,2.87638697,1865.5,1865.2,0.32067693]
[1680610165380,2.87638697,1865.5,1865.2,0.53512693]
[1680610165868,2.99602218,1865.4,1865.2,0.32067693]
[1680610166073,2.99602218,1865.4,1865.2,0.53511693]
[1680610166303,2.25736479,1865.5,1865.2,0.53511693]
[1680610166304,0.11336479,1865.5,1865.2,0.53511693]
[1680610166643,2.87638697,1865.5,1865.2,0.53511693]
[1680610167112,0.11036479,1865.5,1865.2,0.53511693]
[1680610167677,2.76602218,1865.4,1865.2,0.32067693]
[1680610167891,2.76602218,1865.4,1865.2,0.53512693]
[1680610169703,2.76602218,1865.4,1865.2,0.32067693]
[1680610169916,2.76602218,1865.4,1865.2,0.53512693]
[1680610170631,2.76602218,1865.4,1865.2,0.32067693]
[1680610170836,2.76602218,1865.4,1865.2,0.53512693]
[1680610171329,2.76602218,1865.4,1865.2,0.32067693]
[1680610171716,2.76602218,1865.4,1865.2,0.53512693]
[1680610171918,2.76602218,1865.4,1865.2,0.32067693]
[1680610172086,0.34036479,1865.3,1865.2,0.32067693]
[1680610172287,3.10638697,1865.3,1865.2,0.32067693]
[1680610173434,5.25038697,1865.3,1865.2,0.32067693]
[1680610173602,5.25338697,1865.3,1865.2,0.32067693]
[1680610174290,10.90638697,1865.3,1865.2,0.32067693]
[1680610174594,15.04838697,1865.3,1865.2,0.32067693]
[1680610174818,18.26338697,1865.3,1865.2,0.32067693]
[1680610174986,18.26338697,1865.3,1865.2,0.1]
[1680610176222,18.32771697,1865.3,1865.2,0.1]
[1680610176595,18.45637697,1865.3,1865.2,0.1]
[1680610177385,19.59537697,1865.3,1865.2,0.1]
[1680610177589,20.15495248,1865.3,1865.2,0.1]
[1680610177859,55.15495248,1865.3,1865.2,0.1]
[1680610178023,55.15495248,1865.3,1865.0,0.1]
[1680610178024,0.11036479,1865.1,1865.0,0.1]
[1680610178224,18.22828463,1865.1,1865.0,0.1]
[1680610178425,20.37528463,1865.1,1865.0,0.1]
[1680610179913,20.11793463,1865.1,1865.0,0.1]
[1680610181412,13.868,1865.0,1864.9,0.06684]
[1680610181646,23.34904218,1865.0,1864.9,0.06684]
[1680610182946,23.22036218,1865.0,1864.9,0.06684]
[1680610183327,23.34904218,1865.0,1864.9,0.06684]
[1680610184047,18.34904218,1865.0,1864.9,0.06684]
[1680610184350,23.34904218,1865.0,1864.9,0.06684]
[1680610185525,23.22036218,1865.0,1864.9,0.06684]
[1680610186655,23.34904218,1865.0,1864.9,0.06684]
[1680610187651,7.91302218,1865.0,1864.9,0.06684]
[1680610187870,7.97736218,1865.0,1864.9,0.06684]
[1680610188055,18.75904218,1865.0,1864.9,0.06684]
[1680610188223,53.75904218,1865.0,1864.9,0.06684]
[1680610189162,59.67179078,1865.0,1864.9,0.06684]
[1680610189367,60.03047078,1865.0,1864.9,0.06684]
[1680610189659,60.29828367,1865.0,1864.9,0.06684]
[1680610189860,60.03047078,1865.0,1864.9,0.06684]
[1680610192961,60.59007168,1865.0,1864.9,0.06684]
[1680610197442,60.59207168,1865.0,1864.9,1e-08]
[1680610199183,60.46339168,1865.0,1864.9,1e-08]
[1680610199391,60.59207168,1865.0,1864.9,1e-08]
[1680610199682,60.46339168,1865.0,1864.9,1e-08]
[1680610199885,60.59207168,1865.0,1864.9,1e-08]
[1680610200444,60.46339168,1865.0,1864.9,1e-08]
[1680610200902,60.59207168,1865.0,1864.9,1e-08]
[1680610206809,60.46339168,1865.0,1864.9,1e-08]
[1680610207230,60.59207168,1865.0,1864.9,1e-08]
[1680610207628,60.39905168,1865.0,1864.9,1e-08]
[1680610207771,55.80505168,1865.0,1864.9,1e-08]
[1680610207971,59.02005168,1865.0,1864.9,1e-08]
[1680610208171,59.08439168,1865.0,1864.9,1e-08]
[1680610208526,59.02005168,1865.0,1864.9,1e-08]
[1680610208728,59.08439168,1865.0,1864.9,1e-08]
[1680610209016,59.02005168,1865.0,1864.9,1e-08]
[1680610209222,59.31439168,1865.0,1864.9,1e-08]
[1680610209573,59.44307168,1865.0,1864.9,1e-08]
[1680610209871,59.31439168,1865.0,1864.9,1e-08]
[1680610210668,59.44307168,1865.0,1864.9,1e-08]
[1680610210873,5.76336479,1864.6,1864.5,5.333949]
[1680610211130,11.83473697,1864.6,1864.5,5.333949]
[1680610211419,13.98073697,1864.6,1864.5,5.26968503]
[1680610211619,14.54036442,1864.6,1864.5,5.26968503]
[1680610211774,8.65736442,1864.6,1864.5,5.26968503]
[1680610212114,8.59301442,1864.6,1864.5,5.26968503]
[1680610212816,14.24601442,1864.6,1864.5,5.26968503]
[1680610213036,14.24601442,1864.6,1864.5,5.44523282]
[1680610213190,8.59301442,1864.6,1864.5,5.44523282]
[1680610213387,14.24601442,1864.6,1864.5,5.44523282]
[1680610213887,14.47601442,1864.6,1864.5,5.44523282]
[1680610217518,8.82301442,1864.6,1864.5,5.44523282]
[1680610217878,8.88736442,1864.6,1864.5,5.44523282]
[1680610218275,9.42610288,1864.6,1864.5,5.44523282]
[1680610218708,9.36175288,1864.6,1864.5,5.44523282]
[1680610218889,9.42610288,1864.6,1864.5,5.44523282]
[1680610219640,9.36175288,1864.6,1864.5,5.44523282]
[1680610220138,9.42610288,1864.6,1864.5,5.44523282]
[1680610220446,9.36175288,1864.6,1864.5,5.44523282]
[1680610221943,15.07910288,1864.6,1864.5,5.44523282]
[1680610222140,15.07910288,1864.6,1864.5,5.44137702]
[1680610222937,15.01475288,1864.6,1864.5,5.44137702]
[1680610223249,15.07910288,1864.6,1864.5,5.44137702]
[1680610224652,15.07910288,1864.6,1864.5,5.30727703]
[1680610225747,18.29410288,1864.6,1864.5,5.30727703]
[1680610225951,15.07910288,1864.6,1864.5,5.30727703]
[1680610227154,15.07910288,1864.6,1864.5,5.13172924]
[1680610227808,15.20781288,1864.6,1864.5,4.39692924]
[1680610229813,18.42281288,1864.6,1864.5,4.39692924]
[1680610230214,19.52132928,1864.6,1864.5,4.39692924]
[1680610231749,19.52132928,1864.6,1864.5,4.29102924]
[1680610232957,54.52132928,1864.6,1864.5,4.20102924]
[1680610233260,51.24630552,1864.6,1864.5,4.20102924]
[1680610234460,51.23830552,1864.6,1864.5,4.20102924]
[1680610235834,54.45330552,1864.6,1864.5,4.20102924]
[1680610237650,48.80030552,1864.6,1864.5,4.20102924]
[1680610238746,48.80030552,1864.6,1864.5,4.20502924]
[1680610238947,45.47494073,1864.6,1864.5,4.85061924]
[1680610239259,41.91531328,1864.6,1864.5,4.85061924]
[1680610239855,6.91531328,1864.6,1864.5,4.85061924]
[1680610240063,6.91531328,1864.6,1864.5,5.01867351]
[1680610240360,6.91531328,1864.6,1864.5,4.58961351]
[1680610240663,9.91531328,1864.6,1864.5,4.58961351]
[1680610243248,9.91531328,1864.6,1864.5,5.01867351]
[1680610243523,9.91531328,1864.6,1864.5,4.58961351]
[1680610244060,9.68531328,1864.6,1864.5,4.58961351]
[1680610244217,9.68531328,1864.6,1864.5,4.39706827]
[1680610244218,6.9192911,1864.6,1864.5,4.39706827]
[1680610244422,6.9192911,1864.6,1864.5,4.61159827]
[1680610245747,9.68531328,1864.6,1864.5,4.39706827]
[1680610245939,9.91531328,1864.6,1864.5,4.39706827]
[1680610246139,9.91531328,1864.6,1864.5,4.61159827]
[1680610248166,9.91531328,1864.6,1864.5,4.58961351]
[1680610248336,9.91531328,1864.6,1864.5,5.01867351]
[1680610248666,9.68531328,1864.6,1864.5,5.01867351]
[1680610249840,6.9192911,1864.6,1864.5,5.5767012]
[1680610250731,3.9192911,1864.6,1864.5,5.5767012]
[1680610250956,3.9162911,1864.6,1864.5,5.5767012]
[1680610251739,3.9162911,1864.6,1864.5,5.1476412]
[1680610253097,3.9162911,1864.6,1864.5,4.58961351]
[1680610254667,3.91291783,1864.6,1864.5,4.58761351]
[1680610254841,3.9162911,1864.6,1864.5,4.58761351]
[1680610255689,6.68231328,1864.6,1864.5,4.37308351]
[1680610255885,6.91531328,1864.6,1864.5,4.37508351]
[1680610256913,6.91531328,1864.6,1864.5,4.37308351]
[1680610257280,6.68531328,1864.6,1864.5,4.37308351]
[1680610257797,6.68531328,1864.6,1864.5,4.37108351]
[1680610258576,9.68531328,1864.6,1864.5,4.36908351]
[1680610259376,9.69331328,1864.6,1864.5,4.36908351]
[1680610259965,9.92331328,1864.6,1864.5,4.36908351]
[1680610261815,3.9192911,1864.6,1864.5,4.60959827]
[1680610262019,3.9192911,1864.6,1864.5,4.39706827]
[1680610262020,3.9162911,1864.6,1864.5,4.39706827]
[1680610262318,6.68231328,1864.6,1864.5,4.37508351]
[1680610262481,6.68531328,1864.6,1864.5,4.37508351]
[1680610262898,6.68531328,1864.6,1864.5,4.58961351]
[1680610263965,3.9192911,1864.6,1864.5,4.61159827]
[1680610264178,3.9162911,1864.6,1864.5,4.61159827]
[1680610264697,6.68231328,1864.6,1864.5,4.37508351]
[1680610264899,6.68531328,1864.6,1864.5,4.37508351]
[1680610265398,6.68531328,1864.6,1864.5,4.58961351]
[1680610266065,6.68531328,1864.6,1864.5,4.37508351]
[1680610266563,6.68531328,1864.6,1864.5,4.37308351]
[1680610268187,6.69331328,1864.6,1864.5,4.36908351]
[1680610268714,9.69331328,1864.6,1864.5,4.36908351]
[1680610268997,9.68531328,1864.6,1864.5,4.36908351]
[1680610274782,9.68831328,1864.6,1864.5,4.36908351]
[1680610274975,9.69331328,1864.6,1864.5,4.36908351]
[1680610278907,9.92331328,1864.6,1864.5,4.36908351]
[1680610285847,16.1363675,1864.6,1864.5,4.36908351]
[1680610287599,19.3513675,1864.6,1864.5,4.36908351]
[1680610288005,19.3513675,1864.6,1864.5,4.20102924]
[1680610288555,13.6983675,1864.6,1864.5,4.20102924]
[1680610288834,9.69331328,1864.6,1864.5,4.41555924]
[1680610289006,9.69331328,1864.6,1864.5,4.35460362]
[1680610289212,9.69331328,1864.6,1864.5,4.56913362]
[1680610289414,9.69331328,1864.6,1864.5,4.35460362]
[1680610290203,15.34631328,1864.6,1864.5,4.35460362]
[1680610290408,16.13643085,1864.6,1864.5,4.35460362]
[1680610290853,16.13143085,1864.6,1864.5,4.35460362]
[1680610291023,16.13643085,1864.6,1864.5,4.35460362]
[1680610295252,10.48343085,1864.6,1864.5,4.35460362]
[1680610296317,16.13643085,1864.6,1864.5,4.35460362]
[1680610299723,19.35143085,1864.6,1864.5,4.35460362]
[1680610300653,21.33341358,1864.6,1864.5,4.35460362]
[1680610300855,13.97836479,1864.3,1864.2,0.1]
[1680610301059,23.07972694,1864.3,1864.2,0.1]
[1680610301257,10.653,1864.2,1864.1,0.1]
[1680610301448,17.30602218,1864.2,1864.1,0.1]
[1680610301762,19.51939218,1864.2,1864.1,0.1]
[1680610302256,20.02239218,1864.2,1864.1,0.1]
[1680610302430,20.15113218,1864.2,1864.1,0.1]
[1680610304258,20.15113218,1864.2,1864.0,0.1]
[1680610304259,20.14313218,1864.2,1864.0,0.1]
[1680610304461,8.75938697,1864.1,1864.0,0.1]
[1680610304625,13.97275697,1864.1,1864.0,0.1]
[1680610305882,14.5329661,1864.1,1864.0,0.1]
[1680610306583,15.05720303,1864.1,1864.0,0.1]
[1680610307382,15.18594303,1864.1,1864.0,0.1]
[1680610309048,18.27220303,1864.1,1864.0,0.1]
[1680610309760,18.20783303,1864.1,1864.0,0.1]
[1680610309956,18.27220303,1864.1,1864.0,0.1]
[1680610310170,18.20783303,1864.1,1864.0,0.1]
[1680610310557,18.27220303,1864.1,1864.0,0.1]
[1680610312564,18.20783303,1864.1,1864.0,0.1]
[1680610312763,18.27220303,1864.1,1864.0,0.1]
[1680610313385,18.20783303,1864.1,1864.0,0.1]
[1680610313697,18.27220303,1864.1,1864.0,0.1]
[1680610314531,18.20783303,1864.1,1864.0,0.1]
[1680610314820,53.20783303,1864.1,1864.0,0.1]
[1680610315185,53.27220303,1864.1,1864.0,0.1]
[1680610315585,53.20783303,1864.1,1864.0,0.1]
[1680610315787,53.27220303,1864.1,1864.0,0.1]
[1680610318189,53.40094303,1864.1,1864.0,0.1]
[1680610318714,0.11036479,1863.8,1863.7,0.1]
[1680610318916,6.09138697,1863.8,1863.7,0.1]
[1680610319231,9.09438697,1863.8,1863.7,0.1]
[1680610319431,9.32438697,1863.8,1863.7,0.1]
[1680610319638,11.47038697,1863.8,1863.7,0.1]
[1680610319836,14.97738697,1863.8,1863.7,0.1]
[1680610320200,14.9535,1863.8,1863.7,0.33411765]
[1680610321260,15.51365366,1863.8,1863.7,0.33411765]
[1680610321837,15.51365366,1863.8,1863.7,0.54873765]
[1680610322237,15.51365366,1863.8,1863.7,0.33411765]
[1680610322556,15.51365366,1863.8,1863.7,0.54873765]
[1680610322755,15.51365366,1863.8,1863.7,0.35611185]
[1680610322756,3.77815366,1863.8,1863.7,0.35611185]
[1680610322963,0.003,1863.9,1863.7,0.57073185]
[1680610323145,5.98102218,1863.9,1863.7,0.57073185]
[1680610323351,5.98402218,1863.9,1863.7,0.57073185]
[1680610323522,5.98402218,1863.9,1863.7,0.35611185]
[1680610323730,5.98102218,1863.8,1863.7,0.57073185]
[1680610323927,5.98402218,1863.8,1863.7,0.57073185]
[1680610324131,5.98402218,1863.8,1863.7,0.99998185]
[1680610324443,3.218,1863.8,1863.7,2.07428003]
[1680610324631,3.215,1863.8,1863.7,2.07428003]
[1680610324831,3.218,1864.0,1863.7,2.07428003]
[1680610325076,5.98102218,1863.9,1863.7,1.21578003]
[1680610325237,5.98402218,1863.9,1863.7,1.22178003]
[1680610325625,5.98402218,1863.9,1863.7,0.55591583]
[1680610325832,6.0705,1863.9,1863.7,0.33611765]
[1680610326026,6.0705,1863.9,1863.7,0.33411765]
[1680610326770,0.23,1863.8,1863.7,0.33411765]
[1680610326951,6.21102218,1863.8,1863.7,0.33411765]
[1680610327161,14.86702218,1863.8,1863.7,0.33411765]
[1680610327352,17.01302218,1863.8,1863.7,0.33411765]
[1680610328254,11.36002218,1863.8,1863.7,0.33411765]
[1680610328472,9.21402218,1863.8,1863.7,0.33411765]
[1680610328670,8.98402218,1863.8,1863.7,0.54873765]
[1680610329546,14.63702218,1863.8,1863.7,0.33411765]
[1680610329747,14.86702218,1863.8,1863.7,0.54873765]
[1680610330183,14.86702218,1863.8,1863.7,0.33411765]
[1680610331486,9.21402218,1863.8,1863.7,0.33411765]
[1680610331691,9.21402218,1863.8,1863.7,0.54873765]
[1680610331846,8.98402218,1863.8,1863.7,0.33411765]
[1680610332393,9.54415159,1863.8,1863.7,0.33411765]
[1680610332751,8.98402218,1863.8,1863.7,2.15198185]
[1680610332947,0.003,1863.8,1863.7,2.45303304]
[1680610333181,3.215,1864.0,1863.7,2.45303304]
[1680610333487,5.98102218,1863.9,1863.7,2.45303304]
[1680610333785,5.98402218,1863.9,1863.8,0.2453033]
[1680610333995,5.98402218,1863.9,1863.8,0.8891433]
[1680610334489,5.98402218,1863.9,1863.7,0.34011765]
[1680610334687,5.98402218,1863.9,1863.7,0.55072765]
[1680610335168,5.98402218,1863.9,1863.7,0.54872765]
[1680610335570,5.98402218,1863.9,1863.7,0.33411765]
[1680610335885,5.98402218,1863.9,1863.7,0.54873765]
[1680610336881,6.0705,1863.9,1863.7,0.33411765]
[1680610337198,11.7235,1863.9,1863.7,0.54872765]
[1680610337376,0.23,1863.8,1863.7,0.33411765]
[1680610337685,6.21102218,1863.8,1863.7,0.33411765]
[1680610337980,6.21402218,1863.8,1863.7,0.54873765]
[1680610338484,5.98402218,1863.8,1863.7,0.54873765]
[1680610338888,5.98402218,1863.8,1863.7,0.33411765]
[1680610339075,5.98402218,1863.8,1863.7,0.54873765]
[1680610340283,5.98402218,1863.8,1863.7,0.33411765]
[1680610343385,5.98402218,1863.8,1863.7,0.54873765]
[1680610343589,5.98402218,1863.8,1863.7,0.33411765]
[1680610343785,6.21402218,1863.8,1863.7,0.54873765]
[1680610343993,6.21402218,1863.8,1863.7,0.33411765]
[1680610347814,11.86702218,1863.8,1863.7,0.33411765]
[1680610348187,14.86702218,1863.8,1863.7,0.33411765]
[1680610348726,15.42719715,1863.8,1863.7,0.33411765]
[1680610350733,22.63757715,1863.8,1863.7,0.33411765]
[1680610351342,22.57319715,1863.8,1863.7,0.33411765]
[1680610351633,24.3948583,1863.8,1863.7,0.33411765]
[1680610351814,24.3304783,1863.8,1863.7,0.33411765]
[1680610353099,19.3304783,1863.8,1863.7,0.33411765]
[1680610353305,24.3304783,1863.8,1863.7,0.33411765]
[1680610354307,24.3948583,1863.8,1863.7,0.33411765]
[1680610355446,19.3304783,1863.8,1863.7,0.33411765]
[1680610355642,24.3304783,1863.8,1863.7,0.33411765]
[1680610355839,24.95738651,1863.8,1863.7,0.33028675]
[1680610356519,24.3948583,1863.8,1863.7,0.33028675]
[1680610356841,59.3948583,1863.8,1863.7,0.33028675]
[1680610357153,60.5468583,1863.8,1863.7,0.33028675]
[1680610358571,60.4824783,1863.8,1863.7,0.33028675]
[1680610359098,60.5468583,1863.8,1863.7,0.33028675]
[1680610360145,60.2524783,1863.8,1863.7,0.33028675]
[1680610360348,53.49519715,1863.8,1863.7,0.33028675]
[1680610360668,58.55957715,1863.8,1863.7,0.33028675]
[1680610360847,58.49519715,1863.8,1863.7,0.33028675]
[1680610361461,58.72519715,1863.8,1863.7,0.33028675]
[1680610362244,58.78957715,1863.8,1863.7,0.33028675]
[1680610366858,58.78957715,1863.8,1863.7,0.19718675]
[1680610368806,59.35210536,1863.8,1863.7,0.19718675]
[1680610369103,58.78957715,1863.8,1863.7,0.19718675]
[1680610370787,58.91833715,1863.8,1863.7,0.19718675]
[1680610372218,58.91833715,1863.8,1863.7,0.1331]
[1680610377932,58.91833715,1863.8,1863.7,0.0831]
[1680610379017,59.48086536,1863.8,1863.7,0.0831]
[1680610380525,59.35210536,1863.8,1863.7,0.0831]
[1680610381034,58.72519715,1863.8,1863.7,0.0831]
[1680610381246,53.07219715,1863.8,1863.7,0.0831]
[1680610381447,52.84219715,1863.8,1863.7,0.0831]
[1680610381608,52.90657715,1863.8,1863.7,0.0831]
[1680610382014,58.55957715,1863.8,1863.7,0.0831]
[1680610382227,58.05657715,1863.8,1863.7,0.0831]
[1680610382536,59.34757715,1863.8,1863.7,0.0001]
[1680610382853,43.69019715,1863.8,1863.7,0.0001]
[1680610383033,43.75457715,1863.8,1863.7,0.0001]
[1680610383233,49.40757715,1863.8,1863.7,0.0001]
[1680610383764,49.34319715,1863.8,1863.7,0.0001]
[1680610383960,52.34319715,1863.8,1863.7,0.0001]
[1680610384118,57.34319715,1863.8,1863.7,0.0001]
[1680610384318,57.57319715,1863.8,1863.7,0.0001]
[1680610385529,58.22319715,1863.8,1863.7,0.0001]
[1680610386246,58.28757715,1863.8,1863.7,0.0001]
[1680610386967,58.22319715,1863.8,1863.7,0.0001]
[1680610387112,58.28757715,1863.8,1863.7,0.0001]